[Event "WJCC U20 Girls 2019"]
[Site "New Delhi"]
[Date "2019.10.22"]
[Round "8.44"]
[White "Arushi Kotwal"]
[Black "Du Plessis, Anika"]
[Result "1-0"]
[ECO "D02"]
[WhiteElo "1657"]
[BlackElo "1594"]
[Annotator "NA"]
[PlyCount "143"]
[EventDate "2019.10.15"]
[EventType "swiss"]
[EventCountry "IND"]
[SourceTitle "playchess.com"]
[Source "ChessBase"]
[SourceQuality "1"]
[TimeControl "40/5400+30:1800+30"]

1. d4 {[%emt 0:00:00]} d5 {[%emt 0:00:00]} 2. Nf3 {[%emt 0:00:00]} Nf6 {[%emt 0:00:00]} 3. c4 {[%emt 0:00:00]} e6 {[%emt 0:00:00]} 4. g3 {[%emt 0:00:00]} dxc4 {[%emt 0:02:13]} 5. Qa4+ {[%emt 0:01:12]} Nbd7 {[%emt 0:01:26]} 6. Bg2 {[%emt 0:00:09]} c5 {[%emt 0:02:00]} 7. Qxc4 {[%emt 0:09:56]} Be7 {[%emt 0:06:36]} 8. O-O {[%emt 0:01:33]} O-O {[%emt 0:00:25]} 9. dxc5 {[%emt 0:02:19]} Bxc5 {[%emt 0:05:11]} 10. b4 {[%emt 0:03:21]} Be7 {[%emt 0:02:09]} 11. Rd1 {[%emt 0:05:59]} Nd5 {[%emt 0:05:21]} 12. a3 {[%emt 0:02:56]} Bf6 {[%emt 0:08:33]} 13. Ra2 {[%emt 0:00:35]} N7b6 {[%emt 0:00:53]} 14. Qb3 {[%emt 0:00:55]} Bd7 {[%emt 0:04:33]} 15. a4 {[%emt 0:13:34]} Qe7 {[%emt 0:13:12]} 16. b5 {[%emt 0:01:27]} Qb4 {[%emt 0:08:22]} 17. Qxb4 {[%emt 0:04:36]} Nxb4 {[%emt 0:00:05]} 18. Rad2 {[%emt 0:00:08]} N4d5 {[%emt 0:04:35]} 19. e4 {[%emt 0:03:19]} Nc3 {[%emt 0:05:39]} 20. Nxc3 {[%emt 0:00:34]} Bxc3 {[%emt 0:00:03]} 21. Rxd7 {[%emt 0:00:34]} Nxd7 {[%emt 0:00:20]} 22. Rxd7 {[%emt 0:00:10]} Rfd8 {[%emt 0:01:30]} 23. Rxd8+ {[%emt 0:00:33]} Rxd8 {[%emt 0:00:04]} 24. Be3 {[%emt 0:00:44]} Rd1+ {[%emt 0:02:58]} 25. Bf1 {[%emt 0:00:05]} Ra1 {[%emt 0:03:38]} 26. Bxa7 {[%emt 0:00:27]} Rxa4 {[%emt 0:00:17]} 27. Be3 {[%emt 0:00:12]} Rxe4 {[%emt 0:01:45]} 28. Bd3 {[%emt 0:00:21]} Ra4 {[%emt 0:01:36]} 29. Kf1 {[%emt 0:03:03]} h6 {[%emt 0:05:24]} 30. Nd2 {[%emt 0:01:51]} Bd4 {[%emt 0:05:27]} 31. Bxd4 {[%emt 0:00:15]} Rxd4 {[%emt 0:00:04]} 32. Ke2 {[%emt 0:00:08]} Kf8 {[%emt 0:00:38]} 33. Nc4 {[%emt 0:00:53]} Ke7 {[%emt 0:01:07]} 34. Na5 {[%emt 0:00:33]} Rd7 {[%emt 0:00:18]} 35. Ke3 {[%emt 0:03:49]} Kd6 {[%emt 0:02:32]} 36. Kd4 {[%emt 0:02:31]} Kc7+ {[%emt 0:02:14]} 37. Kc4 {[%emt 0:04:42]} Kb6 {[%emt 0:01:18]} 38. Nb3 {[%emt 0:00:36]} Rc7+ {[%emt 0:00:43]} 39. Kb4 {[%emt 0:00:26]} Rd7 {[%emt 0:01:57]} 40. Nc5 {[%emt 0:04:00]} Rd4+ {[%emt 0:02:34]} 41. Bc4 {[%emt 0:30:09]} Kc7 {[%emt 0:32:15]} 42. Nd3 {[%emt 0:02:43]} Kb6 {[%emt 0:00:00]} 43. Kc3 {[%emt 0:00:00]} Rd7 {[%emt 0:00:00]} 44. Ne5 {[%emt 0:00:00]} Rc7 {[%emt 0:00:00]} 45. Kb4 {[%emt 0:00:00]} f6 {[%emt 0:00:00]} 46. Ng4 {[%emt 0:00:00]} Rc5 {[%emt 0:00:00]} 47. Ne3 {[%emt 0:00:00]} Re5 {[%emt 0:00:00]} 48. Bd3 {[%emt 0:00:00]} Kc7 {[%emt 0:00:00]} 49. Nc4 {[%emt 0:00:00]} Re1 {[%emt 0:00:00]} 50. b6+ {[%emt 0:00:00]} Kc6 {[%emt 0:00:00]} 51. h4 {[%emt 0:00:00]} f5 {[%emt 0:00:47]} 52. h5 {[%emt 0:00:00]} Rd1 {[%emt 0:00:55]} 53. Bc2 {[%emt 0:00:00]} Re1 {[%emt 0:01:33]} 54. Ba4+ {[%emt 0:00:00]} Kd5 {[%emt 0:00:12]} 55. Na5 {[%emt 0:00:50]} Re4+ {[%emt 0:01:00]} 56. Kb5 {[%emt 0:01:13]} Rxa4 {[%emt 0:00:40]} 57. Kxa4 {[%emt 0:00:09]} Kc5 {[%emt 0:00:01]} 58. Nxb7+ {[%emt 0:00:16]} Kxb6 {[%emt 0:00:07]} 59. Nd8 {[%emt 0:00:04]} Kc7 {[%emt 0:01:48]} 60. Nxe6+ {[%emt 0:00:14]} Kd6 {[%emt 0:00:05]} 61. Nxg7 {[%emt 0:00:49]} Ke5 {[%emt 0:00:25]} 62. Kb3 {[%emt 0:01:58]} Kf6 {[%emt 0:01:28]} 63. Ne8+ {[%emt 0:02:17]} Kg5 {[%emt 0:00:32]} 64. Nd6 {[%emt 0:02:21]} f4 {[%emt 0:00:37]} 65. gxf4+ {[%emt 0:00:39]} Kxf4 {[%emt 0:00:31]} 66. Nf7 {[%emt 0:00:12]} Kg4 {[%emt 0:00:05]} 67. Nxh6+ {[%emt 0:00:04]} Kxh5 {[%emt 0:00:03]} 68. Nf5 {[%emt 0:00:30]} Kg4 {[%emt 0:00:21]} 69. Nd4 {[%emt 0:00:06]} Kf4 {[%emt 0:01:08]} 70. Kc3 {[%emt 0:00:51]} Ke5 {[%emt 0:01:00]} 71. Kd3 {[%emt 0:00:18]} Kf4 {[%emt 0:00:14]} 72. f3 {[%emt 0:00:05] Ke4+ Kxe4} 1-0

[Event "WJCC U20 Girls 2019"]
[Site "New Delhi"]
[Date "2019.10.22"]
[Round "8.45"]
[White "Yaakub, Nov Genevia Pslam"]
[Black "Reid, Caitlin"]
[Result "1-0"]
[ECO "B34"]
[WhiteElo "1316"]
[BlackElo "1489"]
[Annotator "NA RC"]
[PlyCount "39"]
[EventDate "2019.10.15"]
[EventType "swiss"]
[EventCountry "IND"]
[SourceTitle "playchess.com"]
[Source "ChessBase"]
[SourceQuality "1"]
[TimeControl "40/5400+30:1800+30"]

1. e4 {[%emt 0:00:00]} c5 {[%emt 0:00:00]} 2. Nf3 {[%emt 0:00:00]} Nc6 {[%emt 0:00:53]} 3. d4 {[%emt 0:00:05]} cxd4 {[%emt 0:00:18]} 4. Nxd4 {[%emt 0:00:13]} g6 {[%emt 0:01:17]} 5. Nc3 {[%emt 0:02:47]} Bg7 {[%emt 0:00:10]} 6. Be3 {[%emt 0:01:58]} Nf6 {[%emt 0:00:32]} 7. Be2 {[%emt 0:01:58]} d5 {[%emt 0:01:22]} 8. exd5 {[%emt 0:03:20]} Nxd5 {[%emt 0:00:14]} 9. Nxc6 {[%emt 0:00:18]} bxc6 {[%emt 0:00:25]} 10. Nxd5 {[%emt 0:00:22]} cxd5 {[%emt 0:02:27]} 11. Bb5+ {[%emt 0:01:43]} Bd7 {[%emt 0:00:11]} 12. Qxd5 {[%emt 0:03:50]} Bxb2 {[%emt 0:08:11]} 13. Bxd7+ {[%emt 0:01:42]} Kf8 {[%emt 0:01:08]} 14. Rd1 {[%emt 0:04:33]} Kg7 {[%emt 0:00:53]} 15. Bd4+ {[%emt 0:02:07]} Bxd4 {[%emt 0:00:30]} 16. Rxd4 {[%emt 0:01:24]} Rb8 {[%emt 0:00:15]} 17. O-O {[%emt 0:02:10]} Qc7 {[%emt 0:00:18]} 18. Rc4 {[%emt 0:01:41]} Qb6 {[%emt 0:00:59]} 19. Qe5+ {[%emt 0:06:44]} Kh6 {[%emt 0:00:51]} 20. Rh4# {[%emt 0:00:18] Ra8} 1-0

[Event "WJCC U20 Girls 2019"]
[Site "New Delhi"]
[Date "2019.10.23"]
[Round "9.3"]
[White "Berdnyk, Mariia"]
[Black "Divya Deshmukh"]
[Result "1-0"]
[ECO "E04"]
[WhiteElo "2349"]
[BlackElo "2358"]
[Annotator "ChessBase"]
[PlyCount "65"]
[EventDate "2019.10.15"]
[EventType "swiss"]
[EventCountry "IND"]
[SourceTitle "playchess.com"]
[Source "ChessBase"]
[SourceQuality "1"]
[TimeControl "40/5400+30:1800+30"]

1. d4 {[%emt 0:00:00]} Nf6 {[%emt 0:00:00]} 2. c4 {[%emt 0:00:00]} e6 {[%emt 0:00:00]} 3. g3 {[%emt 0:00:00]} d5 {[%emt 0:00:00]} 4. Nf3 {[%emt 0:00:00]} dxc4 {[%emt 0:00:00]} 5. Bg2 {[%emt 0:01:39]} a6 {[%emt 0:00:00]} 6. O-O {[%emt 0:09:42]} Nc6 {[%emt 0:00:06]} 7. e3 {[%emt 0:08:09]} Rb8 {[%emt 0:00:10]} 8. Nfd2 {[%emt 0:00:40]} e5 {[%emt 0:00:09]} 9. Nxc4 {[%emt 0:00:54]} exd4 {[%emt 0:06:58]} 10. exd4 {[%emt 0:02:20]} Nxd4 {[%emt 0:05:54]} 11. Bf4 {[%emt 0:02:28]} Bc5 {[%emt 0:11:20]} 12. Re1+ {[%emt 0:04:29]} Be6 {[%emt 0:11:43]} 13. Na5 {[%emt 0:03:18]} O-O {[%emt 0:16:55]} 14. Nc3 {[%emt 0:04:43]} Nd5 {[%emt 0:13:43]} 15. Be5 {[%emt 0:06:58]} Bb6 {[%emt 0:17:03]} 16. Bxd4 {[%emt 0:06:39]} Bxa5 {[%emt 0:01:28]} 17. Nxd5 {[%emt 0:04:52]} Bxd5 {[%emt 0:01:19]} 18. Bxd5 {[%emt 0:04:12]} Bxe1 {[%emt 0:02:11]} 19. Qg4 {[%emt 0:02:23]} g6 {[%emt 0:00:11]} 20. Bb3 {[%emt 0:01:55]} Bd2 {[%emt 0:03:51]} 21. Rd1 {[%emt 0:00:52]} Qg5 22. Qe2 {[%emt 0:02:58]} c5 {[%emt 0:02:21]} 23. Be5 {[%emt 0:02:20]} Ba5 24. Bxb8 {[%emt 0:04:05]} Rxb8 {[%emt 0:05:33]} 25. Rd7 {[%emt 0:00:26]} Kh8 {[%emt 0:00:56]} 26. Rxf7 {[%emt 0:00:56]} c4 {[%emt 0:00:29]} 27. Qxc4 {[%emt 0:01:47]} Rd8 {[%emt 0:00:22]} 28. Rd7 {[%emt 0:06:58]} Qf6 {[%emt 0:00:11]} 29. Rxd8+ {[%emt 0:01:54]} Qxd8 {[%emt 0:00:02]} 30. Qd5 {[%emt 0:01:08]} h5 {[%emt 0:01:33]} 31. Qf7 {[%emt 0:02:00]} Bb6 {[%emt 0:00:27]} 32. Qxg6 {[%emt 0:00:25]} Qf8 {[%emt 0:00:29]} 33. Qxb6 {[%emt 0:00:07]} 1-0

[Event "WJCC U20 Girls 2019"]
[Site "New Delhi"]
[Date "2019.10.23"]
[Round "9.4"]
[White "Assaubayeva, Bibisara"]
[Black "Priyanka Nutakki"]
[Result "1/2-1/2"]
[ECO "D61"]
[WhiteElo "2381"]
[BlackElo "2248"]
[Annotator "ChessBase"]
[PlyCount "141"]
[EventDate "2019.10.15"]
[EventType "swiss"]
[EventCountry "IND"]
[SourceTitle "playchess.com"]
[Source "ChessBase"]
[SourceQuality "1"]
[TimeControl "40/5400+30:1800+30"]

1. d4 {[%emt 0:00:00]} d5 {[%emt 0:00:00]} 2. c4 {[%emt 0:00:00]} e6 {[%emt 0:00:00]} 3. Nc3 {[%emt 0:00:26]} Nf6 {[%emt 0:00:00]} 4. Bg5 {[%emt 0:01:51]} Be7 {[%emt 0:00:08]} 5. Nf3 {[%emt 0:03:03]} O-O {[%emt 0:00:35]} 6. e3 {[%emt 0:00:09]} Nbd7 {[%emt 0:00:29]} 7. Qc2 {[%emt 0:04:06]} a6 {[%emt 0:04:39]} 8. cxd5 {[%emt 0:02:18]} exd5 {[%emt 0:00:40]} 9. Bd3 {[%emt 0:00:25]} c6 {[%emt 0:02:45]} 10. O-O {[%emt 0:01:34]} Re8 {[%emt 0:00:22]} 11. h3 {[%emt 0:02:06]} Nf8 {[%emt 0:02:33]} 12. Rae1 {[%emt 0:05:12]} g6 {[%emt 0:10:21]} 13. Ne5 {[%emt 0:04:35]} Ne6 {[%emt 0:01:51]} 14. Bh4 {[%emt 0:06:28]} Ng7 {[%emt 0:02:06]} 15. Na4 {[%emt 0:12:11]} Bf5 {[%emt 0:03:33]} 16. Nc5 {[%emt 0:03:19]} Bxd3 {[%emt 0:13:42]} 17. Nexd3 {[%emt 0:01:20]} Ra7 {[%emt 0:05:47]} 18. Qb3 {[%emt 0:04:50]} Ne4 {[%emt 0:13:45]} 19. Bxe7 {[%emt 0:01:53]} Rxe7 {[%emt 0:00:22]} 20. Nxe4 {[%emt 0:01:54]} Rxe4 {[%emt 0:03:35]} 21. Ne5 {[%emt 0:04:46]} Rh4 {[%emt 0:07:34]} 22. f4 {[%emt 0:05:03]} Nf5 {[%emt 0:02:12]} 23. Kh2 {[%emt 0:04:46]} Nd6 {[%emt 0:10:25]} 24. Qc2 {[%emt 0:08:22]} Ne4 {[%emt 0:04:31]} 25. Nf3 {[%emt 0:06:44]} Rh6 {[%emt 0:00:51]} 26. Nd2 {[%emt 0:04:24]} Nd6 {[%emt 0:03:21]} 27. e4 {[%emt 0:01:31]} dxe4 {[%emt 0:01:04]} 28. Nxe4 {[%emt 0:00:13]} Ra8 {[%emt 0:03:24]} 29. Qb3 {[%emt 0:03:28]} Rb8 {[%emt 0:01:47]} 30. Ng5 {[%emt 0:01:02]} Qf6 {[%emt 0:01:27]} 31. d5 {[%emt 0:01:09]} cxd5 {[%emt 0:00:17]} 32. Qxd5 {[%emt 0:00:06]} Rh5 {[%emt 0:00:46]} 33. Rd1 {[%emt 0:03:08]} Nf5 {[%emt 0:00:56]} 34. Qb3 {[%emt 0:01:35]} Re8 {[%emt 0:00:40]} 35. Rd7 {[%emt 0:02:41]} Re7 {[%emt 0:00:18]} 36. Rxb7 {[%emt 0:00:48]} Rxg5 {[%emt 0:00:40]} 37. Rb8+ {[%emt 0:00:25]} Kg7 {[%emt 0:00:01]} 38. fxg5 {[%emt 0:00:12]} Qd6+ {[%emt 0:00:27]} 39. Kg1 {[%emt 0:00:05]} Qd4+ {[%emt 0:00:54]} 40. Kh1 {[%emt 0:00:01]} Re3 {[%emt 0:00:16]} 41. Qb4 {[%emt 0:03:38]} Ng3+ {[%emt 0:05:24]} 42. Kg1 {[%emt 0:00:01]} Qxb4 {[%emt 0:00:23]} 43. Rxb4 {[%emt 0:00:02]} Nxf1 {[%emt 0:00:06]} 44. Kxf1 {[%emt 0:00:02]} Re5 {[%emt 0:00:29]} 45. h4 {[%emt 0:01:14]} h6 {[%emt 0:02:09]} 46. gxh6+ {[%emt 0:00:16]} Kxh6 {[%emt 0:00:01]} 47. Kf2 {[%emt 0:02:04]} Kh5 {[%emt 0:03:02]} 48. a4 {[%emt 0:03:36]} f5 {[%emt 0:04:08]} 49. b3 {[%emt 0:03:49]} Rc5 {[%emt 0:03:42]} 50. Rc4 {[%emt 0:01:50]} Rd5 {[%emt 0:00:11]} 51. b4 {[%emt 0:01:03]} Rd2+ {[%emt 0:00:57]} 52. Kf3 {[%emt 0:02:35]} Ra2 {[%emt 0:01:51]} 53. a5 {[%emt 0:00:58]} Rb2 {[%emt 0:01:44]} 54. g3 {[%emt 0:02:09]} Rb3+ {[%emt 0:02:05]} 55. Kg2 {[%emt 0:01:13]} Rb2+ {[%emt 0:01:57]} 56. Kh3 {[%emt 0:00:16]} g5 {[%emt 0:04:03]} 57. hxg5 {[%emt 0:00:03]} Kxg5 {[%emt 0:00:03]} 58. Rf4 {[%emt 0:07:13]} Rd2 {[%emt 0:00:31]} 59. Rc4 {[%emt 0:01:13]} Rb2 {[%emt 0:00:02]} 60. Rd4 {[%emt 0:00:08]} Kh5 {[%emt 0:00:48]} 61. Rd6 {[%emt 0:01:54]} Rxb4 {[%emt 0:00:06]} 62. Rxa6 {[%emt 0:00:01]} Ra4 {[%emt 0:00:05]} 63. Ra8 {[%emt 0:00:44]} Kh6 {[%emt 0:00:57]} 64. Kg2 {[%emt 0:00:13]} Ra3 {[%emt 0:00:12]} 65. a6 {[%emt 0:02:26]} Kg7 {[%emt 0:00:33]} 66. Kf2 {[%emt 0:00:15]} Kh7 {[%emt 0:00:15]} 67. a7 {[%emt 0:00:50]} Kg7 {[%emt 0:00:07]} 68. Kg2 {[%emt 0:00:15]} Kh7 {[%emt 0:00:08]} 69. Rf8 {[%emt 0:00:48]} Rxa7 {[%emt 0:00:06]} 70. Rxf5 {[%emt 0:00:06]} Kg6 {[%emt 0:00:08]} 71. Kf3 1/2-1/2

[Event "WJCC U20 Girls 2019"]
[Site "New Delhi"]
[Date "2019.10.23"]
[Round "9.7"]
[White "Aakanksha Hagawane"]
[Black "Li, Yunshan"]
[Result "1/2-1/2"]
[ECO "B10"]
[WhiteElo "2181"]
[BlackElo "2289"]
[Annotator "ChessBase"]
[PlyCount "117"]
[EventDate "2019.10.15"]
[EventType "swiss"]
[EventCountry "IND"]
[SourceTitle "playchess.com"]
[Source "ChessBase"]
[SourceQuality "1"]
[TimeControl "40/5400+30:1800+30"]

1. e4 {[%emt 0:00:00]} c6 {[%emt 0:00:00]} 2. Nc3 {[%emt 0:00:00]} d5 {[%emt 0:00:00]} 3. Nf3 {[%emt 0:00:00]} dxe4 {[%emt 0:00:04]} 4. Nxe4 {[%emt 0:00:08]} Nf6 {[%emt 0:00:04]} 5. Qe2 {[%emt 0:00:13]} Nxe4 {[%emt 0:00:09]} 6. Qxe4 {[%emt 0:00:06]} Qa5 {[%emt 0:00:10]} 7. Bc4 {[%emt 0:06:08]} Bf5 {[%emt 0:00:22]} 8. Qe2 {[%emt 0:03:40]} Nd7 {[%emt 0:00:25]} 9. O-O {[%emt 0:02:17]} e6 {[%emt 0:01:19]} 10. d4 {[%emt 0:00:35]} Be7 {[%emt 0:00:52]} 11. h3 {[%emt 0:02:13]} Qc7 {[%emt 0:11:31]} 12. Bb3 {[%emt 0:05:12]} O-O {[%emt 0:07:21]} 13. Be3 {[%emt 0:02:01]} Rad8 {[%emt 0:06:30]} 14. Rad1 {[%emt 0:03:59]} Bg6 {[%emt 0:08:38]} 15. c4 {[%emt 0:10:31]} Bh5 {[%emt 0:03:48]} 16. Bc1 {[%emt 0:03:15]} Bf6 {[%emt 0:07:24]} 17. Bc2 {[%emt 0:05:13]} Nb6 {[%emt 0:15:51]} 18. Qd3 {[%emt 0:04:28]} Bg6 {[%emt 0:00:21]} 19. Qe2 {[%emt 0:02:31]} Rd7 {[%emt 0:06:02]} 20. Bxg6 {[%emt 0:01:08]} hxg6 {[%emt 0:00:03]} 21. Be3 {[%emt 0:01:57]} Rfd8 {[%emt 0:00:43]} 22. b3 {[%emt 0:00:12]} Nc8 {[%emt 0:00:35]} 23. Rd2 {[%emt 0:04:29]} Qa5 {[%emt 0:05:39]} 24. Rfd1 {[%emt 0:01:38]} Nd6 {[%emt 0:10:31]} 25. Bf4 {[%emt 0:08:40]} Nf5 {[%emt 0:01:00]} 26. Qe4 {[%emt 0:03:02]} Qc3 {[%emt 0:03:46]} 27. Rc2 {[%emt 0:06:05]} Qb4 {[%emt 0:00:24]} 28. Rcd2 {[%emt 0:00:58]} Qc3 {[%emt 0:00:40]} 29. Be3 {[%emt 0:07:13]} a5 {[%emt 0:02:48]} 30. g4 {[%emt 0:03:29]} Nxe3 {[%emt 0:02:13]} 31. Qxe3 {[%emt 0:03:14]} Qxe3 {[%emt 0:01:53]} 32. fxe3 {[%emt 0:00:01]} g5 {[%emt 0:00:58]} 33. e4 {[%emt 0:01:59]} g6 {[%emt 0:02:39]} 34. Rd3 {[%emt 0:01:44]} Be7 {[%emt 0:01:01]} 35. Kf1 {[%emt 0:00:44]} b6 {[%emt 0:01:10]} 36. Ke2 {[%emt 0:00:44]} Kg7 {[%emt 0:00:14]} 37. d5 {[%emt 0:04:40]} cxd5 {[%emt 0:00:27]} 38. cxd5 {[%emt 0:00:48]} exd5 {[%emt 0:00:07]} 39. Rxd5 {[%emt 0:00:04]} Rxd5 {[%emt 0:00:06]} 40. Rxd5 {[%emt 0:00:08]} Rxd5 {[%emt 0:01:22]} 41. exd5 {[%emt 0:30:01]} Kf6 {[%emt 0:10:14]} 42. a4 {[%emt 0:00:00]} Bd6 {[%emt 0:04:53]} 43. Kd3 {[%emt 0:00:00]} Bf4 {[%emt 0:00:40]} 44. Ke4 {[%emt 0:00:00]} Bd6 {[%emt 0:02:20]} 45. Kd4 {[%emt 0:00:00]} Bf4 {[%emt 0:02:34]} 46. Kc4 {[%emt 0:04:28]} Ke7 {[%emt 0:00:18]} 47. b4 {[%emt 0:00:10]} axb4 {[%emt 0:01:48]} 48. Kxb4 {[%emt 0:00:01]} Kd6 {[%emt 0:00:29]} 49. Kc4 {[%emt 0:00:24]} Be3 {[%emt 0:01:41]} 50. Kd3 {[%emt 0:02:15]} Bc1 {[%emt 0:01:56]} 51. Ke4 f6 {[%emt 0:04:22]} 52. Nd4 {[%emt 0:02:14]} Bd2 {[%emt 0:00:38]} 53. Ne6 {[%emt 0:00:27]} Ke7 {[%emt 0:00:30]} 54. Kd3 {[%emt 0:00:33]} Bc1 {[%emt 0:00:49]} 55. Kd4 {[%emt 0:00:41]} Bd2 {[%emt 0:00:51]} 56. Kc4 {[%emt 0:00:30]} Be3 {[%emt 0:00:37]} 57. Kd3 {[%emt 0:00:33]} Bc1 {[%emt 0:00:04]} 58. Kc2 {[%emt 0:00:15]} Be3 {[%emt 0:00:18]} 59. Kd3 {[%emt 0:00:14]} 1/2-1/2

[Event "WJCC U20 Girls 2019"]
[Site "New Delhi"]
[Date "2019.10.23"]
[Round "9.8"]
[White "Song, Yuxin"]
[Black "Altantuya, Boldbaatar"]
[Result "1-0"]
[ECO "B40"]
[WhiteElo "2292"]
[BlackElo "2277"]
[Annotator "ChessBase"]
[PlyCount "103"]
[EventDate "2019.10.15"]
[EventType "swiss"]
[EventCountry "IND"]
[SourceTitle "playchess.com"]
[Source "ChessBase"]
[SourceQuality "1"]
[TimeControl "40/5400+30:1800+30"]

1. e4 {[%emt 0:00:00]} c5 {[%emt 0:00:00]} 2. Nf3 {[%emt 0:00:00]} e6 {[%emt 0:00:00]} 3. Nc3 {[%emt 0:00:00]} d6 {[%emt 0:02:37]} 4. g3 {[%emt 0:06:28]} Nc6 {[%emt 0:03:02]} 5. d4 {[%emt 0:01:23]} cxd4 {[%emt 0:00:27]} 6. Nxd4 {[%emt 0:00:09]} Nf6 {[%emt 0:00:59]} 7. Bg2 {[%emt 0:00:12]} a6 {[%emt 0:06:01]} 8. O-O {[%emt 0:02:45]} Bd7 {[%emt 0:00:11]} 9. Nxc6 {[%emt 0:01:56]} Bxc6 {[%emt 0:00:20]} 10. a4 {[%emt 0:05:25]} Qc7 {[%emt 0:05:45]} 11. a5 {[%emt 0:02:46]} b6 {[%emt 0:06:34]} 12. axb6 {[%emt 0:14:30]} Qxb6 {[%emt 0:00:09]} 13. b3 {[%emt 0:00:17]} Be7 {[%emt 0:09:58]} 14. Re1 {[%emt 0:00:08]} O-O {[%emt 0:01:08]} 15. Nd5 {[%emt 0:04:42]} exd5 {[%emt 0:07:35]} 16. exd5 {[%emt 0:00:15]} Nxd5 {[%emt 0:00:59]} 17. Bxd5 {[%emt 0:00:12]} Bf6 {[%emt 0:00:50]} 18. Be3 {[%emt 0:02:19]} Qb7 {[%emt 0:01:02]} 19. Bxc6 {[%emt 0:00:09]} Qxc6 {[%emt 0:00:03]} 20. Ra4 {[%emt 0:00:21]} d5 {[%emt 0:16:07]} 21. Bd4 {[%emt 0:03:36]} Rac8 {[%emt 0:01:38]} 22. Re2 {[%emt 0:01:58]} Bxd4 {[%emt 0:08:26]} 23. Rxd4 {[%emt 0:01:04]} a5 {[%emt 0:02:59]} 24. Rxd5 {[%emt 0:11:20]} a4 {[%emt 0:01:59]} 25. bxa4 {[%emt 0:00:21]} Qxa4 {[%emt 0:00:10]} 26. Red2 {[%emt 0:00:14]} Qa8 {[%emt 0:05:27]} 27. R2d4 {[%emt 0:02:02]} g6 {[%emt 0:05:30]} 28. c4 {[%emt 0:00:28]} Qa3 {[%emt 0:03:44]} 29. Rd8 {[%emt 0:09:33]} Kg7 {[%emt 0:01:10]} 30. R8d7 {[%emt 0:06:35]} Qc3 {[%emt 0:02:39]} 31. Qe2 {[%emt 0:01:20]} Rfe8 {[%emt 0:01:05]} 32. Qg4 {[%emt 0:00:16]} Qa1+ {[%emt 0:03:10]} 33. Kg2 {[%emt 0:00:26]} Rc5 {[%emt 0:01:14]} 34. Qf3 {[%emt 0:02:53]} Rf5 {[%emt 0:02:18]} 35. Rf4 {[%emt 0:04:47]} Rxf4 {[%emt 0:01:03]} 36. Qxf4 {[%emt 0:01:06]} Qa8+ {[%emt 0:00:51]} 37. Kh3 {[%emt 0:05:12]} Rf8 {[%emt 0:00:36]} 38. f3 {[%emt 0:06:51]} Qc8 {[%emt 0:00:39]} 39. Qd4+ {[%emt 0:00:05]} Kg8 {[%emt 0:00:11]} 40. c5 {[%emt 0:00:20]} Qa6 {[%emt 0:00:35]} 41. Qd5 {[%emt 0:07:39]} Qf1+ {[%emt 0:07:03]} 42. Kg4 {[%emt 0:01:27]} Qf2 {[%emt 0:07:35]} 43. h3 {[%emt 0:07:03]} h5+ {[%emt 0:01:49]} 44. Kh4 {[%emt 0:00:39]} Qb2 {[%emt 0:03:17]} 45. Kg5 {[%emt 0:01:40]} Qg7 {[%emt 0:08:20]} 46. Rd8 {[%emt 0:00:28]} Rxd8 {[%emt 0:01:41]} 47. Qxd8+ {[%emt 0:00:04]} Kh7 {[%emt 0:00:04]} 48. Qf6 {[%emt 0:02:36]} Qh6+ {[%emt 0:02:56]} 49. Kh4 {[%emt 0:00:01]} Qf8 {[%emt 0:01:58]} 50. c6 {[%emt 0:00:05]} Qc5 {[%emt 0:00:24]} 51. f4 {[%emt 0:00:51]} Qc4 {[%emt 0:00:29]} 52. Qd6 {[%emt 0:00:25]} 1-0

[Event "WJCC U20 Girls 2019"]
[Site "New Delhi"]
[Date "2019.10.23"]
[Round "9.9"]
[White "Solozhenkina, Elizaveta"]
[Black "Lakshmi C"]
[Result "1-0"]
[ECO "B34"]
[WhiteElo "2283"]
[BlackElo "1859"]
[Annotator "ChessBase"]
[PlyCount "125"]
[EventDate "2019.10.15"]
[EventType "swiss"]
[EventCountry "IND"]
[SourceTitle "playchess.com"]
[Source "ChessBase"]
[SourceQuality "1"]
[TimeControl "40/5400+30:1800+30"]

1. e4 c5 2. Nf3 Nc6 3. d4 cxd4 4. Nxd4 Nf6 5. Nc3 e5 6. Ndb5 d6 7. Nd5 Nxd5 8. exd5 Nb8 9. a4 Be7 10. Be2 O-O 11. O-O a6 12. Na3 f5 13. Bd2 f4 14. Nc4 Nd7 15. a5 Nf6 16. Bb4 e4 17. Ra3 Bf5 18. Re1 Rc8 19. Qd4 Ne8 20. Qb6 Rc7 21. Bf1 Rf6 22. Rc3 Rf7 23. Nd2 Rxc3 24. Bxc3 Qxb6 25. axb6 Bd8 26. Nxe4 Bxb6 27. Ng5 Rf8 28. Ne6 Rf7 29. Ng5 Rf8 30. Ne6 Rf7 31. Nxf4 Nc7 32. g3 Bxc2 33. h4 Bb3 34. Bg2 a5 35. Re2 Bc4 36. Re4 Bb3 37. h5 Kf8 38. Re2 Bc4 39. Rd2 Nb5 40. Ne6+ Kg8 41. Bxa5 Bxa5 42. Rc2 Bb6 43. Rxc4 Bxf2+ 44. Kh2 Na7 45. Be4 b5 46. Rc3 Bb6 47. Kh3 h6 48. Bg6 Rf2 49. Ra3 Rf1 50. Ra6 Nc8 51. Ra8 Rc1 52. Nf4 Bd4 53. Bf5 Bxb2 54. Be6+ Kf8 55. Ng6+ Ke8 56. Bxc8 Kd8 57. Ba6+ Kc7 58. Bxb5 Rh1+ 59. Kg4 Kb6 60. Bc6 Kc5 61. Rd8 Bf6 62. Rd7 Rb1 63. Nf4 {Kxd5} 1-0